bitfinex-derivatives/quotes_SOLF0:USTF0_20240927
["timestamp","ask_amount","ask_price","bid_price","bid_amount"]
[1727425338849,3.1619,158.09,158.08,16.7]
[1727425339245,3.9012,158.17,158.08,16.7]
[1727425339750,3.1619,158.1,158.08,16.7]
[1727425340850,3.1619,158.09,158.06,19.8624]
[1727425341344,16.7,158.16,158.08,16.7]
[1727425341539,3.9012,158.17,158.08,16.7]
[1727425341739,1.2724,158.17,158.08,16.7]
[1727425342851,3.1617,158.1,158.08,16.7]
[1727425345345,3.1616,158.11,158.08,16.7]
[1727425345542,3.1616,158.11,158.08,19.8621]
[1727425345746,3.1616,158.11,158.08,16.7]
[1727425346353,3.1616,158.11,158.1,10.69]
[1727425346955,10.69,158.15,158.1,10.69]
[1727425347454,3.1615,158.11,158.1,10.69]
[1727425347848,10.69,158.16,158.1,10.69]
[1727425348060,10.69,158.16,158.11,10.69]
[1727425348462,3.1613,158.12,158.11,10.69]
[1727425348953,11.9624,158.17,158.11,10.69]
[1727425349152,3.1613,158.12,158.11,10.69]
[1727425350359,1.2724,158.17,158.11,10.69]
[1727425350557,1.2724,158.17,158.13,10.69]
[1727425350752,1.2724,158.17,158.11,10.69]
[1727425350958,10.69,158.16,158.11,10.69]
[1727425351760,3.1614,158.12,158.11,10.69]
[1727425354668,3.1614,158.12,158.11,110.69]
[1727425355462,3.1614,158.12,158.11,100.0]
[1727425360069,3.1612,158.13,158.11,110.69]
[1727425360361,66.46240924,158.18,158.11,110.69]
[1727425360662,66.46240924,158.18,158.14,10.69]
[1727425360852,66.46240924,158.18,158.13,10.69]
[1727425361052,77.15240924,158.18,158.13,10.69]
[1727425361267,77.15240924,158.18,158.12,10.69]
[1727425361765,3.1613,158.13,158.12,10.69]
[1727425364763,3.1613,158.12,158.11,100.0]
[1727425375080,3.1613,158.12,158.11,110.69]
[1727425376369,1.255,158.17,158.11,110.69]
[1727425376570,66.46240924,158.18,158.13,10.69]
[1727425376766,66.46240924,158.18,158.14,10.69]
[1727425377776,3.1607,158.15,158.14,10.69]
[1727425378779,66.46240924,158.18,158.11,101.3148]
[1727425378973,66.46240924,158.18,158.13,10.69]
[1727425379569,66.46240924,158.18,158.14,100.0]
[1727425379774,77.15240924,158.18,158.14,100.0]
[1727425380875,3.1607,158.15,158.14,100.0]
[1727425382678,3.1607,158.15,158.14,110.69]
[1727425384479,3.1606,158.16,158.14,110.69]
[1727425384774,3.14572772,158.22,158.16,10.69]
[1727425384978,3.1597,158.2,158.19,10.69]
[1727425386881,3.1599,158.19,158.17,10.69]
[1727425387279,13.92474006,158.21,158.15,10.69]
[1727425387475,10.69,158.21,158.15,10.69]
[1727425387874,10.69,158.21,158.14,100.0]
[1727425388081,10.69,158.2,158.14,110.69]
[1727425388276,3.1604,158.17,158.14,110.69]
[1727425389083,74.6172,158.26,158.16,10.69]
[1727425389278,10.69,158.24,158.18,10.69]
[1727425389482,13.90664048,158.24,158.18,10.69]
[1727425389683,3.1599,158.2,158.18,10.69]
[1727425390180,3.21664048,158.24,158.18,10.69]
[1727425390385,10.69,158.25,158.2,10.69]
[1727425390877,3.20747356,158.24,158.2,10.69]
[1727425391082,68.3,158.26,158.17,10.69]
[1727425391083,10.69,158.23,158.17,10.69]
[1727425392280,3.1601,158.19,158.17,10.69]
[1727425394081,3.1598,158.2,158.17,10.69]
[1727425394278,1.2941,158.31,158.19,10.69]
[1727425394479,1.2941,158.31,158.27,10.69]
[1727425394681,10.69,158.33,158.27,10.69]
[1727425394989,10.69,158.34,158.28,10.69]
[1727425395285,2.625,158.35,158.2,2.5044]
[1727425395484,2.625,158.35,158.26,10.69]
[1727425395687,2.625,158.35,158.28,10.69]
[1727425396187,3.1574,158.32,158.29,10.69]
[1727425396692,3.1573,158.32,158.31,10.69]
[1727425396891,11.9993,158.35,158.29,10.69]
[1727425397082,10.69,158.32,158.21,5.71398549]
[1727425397389,10.69,158.33,158.28,10.69]
[1727425398187,1.3008,158.34,158.28,10.69]
[1727425398385,10.69,158.33,158.28,10.69]
[1727425400189,10.69,158.33,158.28,110.69]
[1727425400592,1.3008,158.34,158.28,110.69]
[1727425400793,3.1579,158.3,158.28,110.69]
[1727425400995,1.3008,158.34,158.28,110.69]
[1727425401193,10.69,158.32,158.28,110.69]
[1727425401992,11.9908,158.34,158.29,10.69]
[1727425402192,1.3008,158.34,158.29,10.69]
[1727425402490,3.1577,158.3,158.29,10.69]
[1727425402889,11.9908,158.34,158.29,10.69]
[1727425403189,3.1577,158.31,158.29,10.69]
[1727425403991,3.1577,158.3,158.29,10.69]
[1727425409504,3.1579,158.29,158.28,100.0]
[1727425410406,3.1579,158.29,158.28,110.69]
[1727425411196,10.69,158.33,158.28,110.69]
[1727425412002,11.9908,158.34,158.29,10.69]
[1727425412606,3.1579,158.3,158.29,10.69]
[1727425413209,10.69,158.33,158.28,110.69]
[1727425415811,3.1579,158.29,158.28,110.69]
[1727425419909,3.1578,158.3,158.28,110.69]
[1727425420109,1.3008,158.34,158.29,10.69]
[1727425421111,3.1576,158.31,158.29,10.69]
[1727425423704,3.1574,158.32,158.29,10.69]
[1727425423912,69.53992877,158.36,158.32,10.69]
[1727425424815,3.1571,158.33,158.32,10.69]
[1727425427212,3.1571,158.33,158.29,2.5675]
[1727425427513,3.1571,158.33,158.32,10.69]
[1727425427712,3.1571,158.33,158.29,2.5675]
[1727425427713,3.1576,158.31,158.29,2.5675]
[1727425427916,10.69,158.34,158.29,10.69]
[1727425428308,66.44180105,158.36,158.32,10.69]
[1727425428711,66.44180105,158.36,158.28,101.3441]
[1727425428909,3.1574,158.32,158.3,10.69]
[1727425431113,3.1577,158.31,158.28,101.3441]
[1727425431418,3.1577,158.31,158.3,10.69]
[1727425432911,66.44180105,158.36,158.3,10.69]
[1727425433215,66.44180105,158.36,158.33,10.69]
[1727425433614,69.59830105,158.36,158.33,10.69]
[1727425433811,66.44180105,158.36,158.33,10.69]
[1727425434221,3.1569,158.35,158.33,10.69]
[1727425435025,3.1569,158.34,158.29,5.7338]
[1727425435318,66.44180105,158.36,158.32,10.69]
[1727425435725,3.1571,158.33,158.32,10.69]
[1727425438222,10.69,158.41,158.32,10.69]
[1727425438419,10.69,158.41,158.35,10.69]
[1727425439211,10.69,158.38,158.33,10.69]
[1727425439924,3.1569,158.34,158.33,10.69]
[1727425441123,10.69,158.38,158.33,10.69]
[1727425441613,3.1569,158.35,158.33,10.69]
[1727425441818,10.69,158.38,158.33,10.69]
[1727425442023,10.69,158.37,158.29,2.576]
[1727425442226,10.69,158.37,158.31,10.69]
[1727425442516,3.1573,158.33,158.31,10.69]
[1727425443321,3.1573,158.32,158.31,10.69]
[1727425444821,3.1571,158.33,158.31,10.69]
[1727425445024,10.69,158.39,158.32,10.69]
[1727425445222,10.69,158.39,158.34,10.69]
[1727425446528,10.69,158.41,158.35,10.69]
[1727425447230,3.1565,158.36,158.29,2.576]
[1727425447430,3.1565,158.36,158.35,10.69]
[1727425450329,3.1567,158.35,158.34,10.69]
[1727425454231,3.1567,158.35,158.33,10.69]
[1727425454830,3.1569,158.34,158.33,10.69]
[1727425455329,2.6507,158.42,158.33,10.69]
[1727425455627,2.6507,158.42,158.36,10.69]
[1727425455836,2.6507,158.42,158.38,10.69]
[1727425456125,3.1561,158.39,158.38,10.69]
[1727425456720,10.69,158.4,158.29,2.576]
[1727425456928,10.69,158.4,158.34,10.69]
[1727425457128,2.6507,158.42,158.36,10.69]
[1727425457330,2.6507,158.42,158.37,10.69]
[1727425458523,3.1557,158.4,158.37,10.69]
[1727425459125,3.156,158.39,158.37,10.69]
[1727425460027,2.6507,158.42,158.37,10.69]
[1727425460028,3.1561,158.38,158.37,10.69]
[1727425460429,3.1561,158.38,158.33,3.157]
[1727425460730,3.1561,158.38,158.36,10.69]
[1727425461731,3.1563,158.37,158.36,10.69]
[1727425461932,2.6507,158.42,158.34,3.1569]
[1727425462127,2.6507,158.42,158.38,10.69]
[1727425462639,3.1559,158.4,158.38,10.69]
[1727425462936,2.6507,158.42,158.38,10.69]
[1727425463133,3.1561,158.38,158.36,10.69]
[1727425463640,3.1561,158.38,158.34,1.3494]
[1727425463837,3.1561,158.38,158.36,10.69]
[1727425464245,1.3456,158.42,158.34,1.3494]
[1727425464539,3.156831,158.43,158.39,10.69]
[1727425464741,3.1555,158.41,158.39,10.69]
[1727425464939,10.69,158.43,158.35,2.6485]
[1727425465237,3.1556,158.41,158.38,10.69]
[1727425465541,10.69,158.43,158.38,10.69]
[1727425466639,3.16254886,158.45,158.38,10.69]
[1727425466842,10.69,158.43,158.38,10.69]
[1727425467042,13.80983576,158.43,158.38,10.69]
[1727425467339,3.1555,158.41,158.38,10.69]
[1727425467843,10.69,158.45,158.4,10.69]
[1727425468537,3.1555,158.42,158.4,10.69]
[1727425468734,10.69,158.45,158.4,10.69]
[1727425469336,3.1555,158.41,158.4,10.69]
[1727425471041,3.1554,158.42,158.4,10.69]
[1727425471645,3.1555,158.41,158.4,10.69]
[1727425473140,10.69,158.45,158.4,10.69]
[1727425473443,3.19056888,158.47,158.35,2.6485]
[1727425473641,10.69,158.48,158.43,10.69]
[1727425473840,3.1549,158.44,158.43,10.69]
[1727425474845,10.69,158.44,158.35,2.6485]
[1727425475142,10.69,158.44,158.39,10.69]
[1727425475642,3.12816687,158.48,158.39,10.69]
[1727425475838,10.69,158.44,158.39,10.69]
[1727425476137,3.1557,158.41,158.4,10.69]
[1727425476541,1.2923,158.49,158.4,10.69]
[1727425476742,10.69,158.46,158.41,10.69]
[1727425477637,3.21111165,158.45,158.41,10.69]
[1727425478145,1.2923,158.49,158.43,10.69]
[1727425478338,4.45353399,158.49,158.43,10.69]
[1727425478542,10.69,158.48,158.43,10.69]
[1727425478746,3.1549,158.44,158.43,10.69]
[1727425481742,3.1549,158.44,158.4,1.3165]
[1727425481944,3.1549,158.44,158.42,10.69]
[1727425482247,3.1549,158.44,158.43,10.69]
[1727425483343,3.1548,158.45,158.43,10.69]
[1727425485850,3.1546,158.46,158.43,10.69]
[1727425486652,69.59735237,158.5,158.41,2.6444]
[1727425486947,10.69,158.55,158.49,10.69]
[1727425487157,10.69,158.55,158.41,2.6444]
[1727425487158,2.594,158.58,158.51,10.69]
[1727425487355,10.69,158.55,158.51,10.69]
[1727425487844,3.1533,158.52,158.46,3.1544]
[1727425488046,3.1533,158.52,158.5,10.69]
[1727425488341,3.1533,158.53,158.51,10.69]
[1727425488542,10.69,158.55,158.51,10.69]
[1727425488943,5.77871184,158.58,158.51,10.69]
[1727425489455,10.69,158.56,158.51,10.69]
[1727425489949,3.1533,158.52,158.47,1.2672]
[1727425490155,10.69,158.55,158.49,10.69]
[1727425490348,10.69,158.55,158.47,1.2672]
[1727425490349,5.77871184,158.58,158.47,1.2672]
[1727425490544,5.77871184,158.58,158.48,10.69]
[1727425490751,10.69,158.54,158.5,10.69]
[1727425491049,3.1535,158.51,158.5,10.69]
[1727425491456,5.77871184,158.58,158.5,10.69]
[1727425491655,10.69,158.55,158.5,10.69]
[1727425491852,66.38086275,158.67,158.54,10.69]
[1727425492157,10.69,158.62,158.56,10.69]
[1727425492360,10.69,158.6,158.55,10.69]
[1727425492566,3.152,158.59,158.55,10.69]
[1727425493261,3.1522,158.58,158.56,10.69]
[1727425494361,3.1523,158.57,158.56,10.69]
[1727425495849,10.69,158.6,158.48,2.5988]
[1727425496051,10.69,158.58,158.54,10.69]
[1727425496367,3.1527,158.56,158.54,10.69]
[1727425496754,10.69,158.59,158.54,10.69]
[1727425496960,3.1527,158.55,158.54,10.69]
[1727425497853,10.69,158.6,158.54,10.69]
[1727425498055,10.69,158.6,158.56,10.69]
[1727425498457,5.77231381,158.66,158.56,10.69]
[1727425498648,10.69,158.61,158.56,10.69]
[1727425499355,3.1523,158.57,158.48,2.5988]
[1727425499556,3.1523,158.57,158.56,10.69]
[1727425500656,10.69,158.61,158.49,3.1539]
[1727425500850,10.69,158.61,158.56,10.69]
[1727425501053,10.69,158.61,158.57,10.69]
[1727425501257,3.1521,158.58,158.57,10.69]
[1727425502557,10.69,158.64,158.57,10.69]
[1727425502756,10.69,158.63,158.57,10.69]
[1727425503358,3.1521,158.58,158.57,10.69]
[1727425505560,5.77231381,158.66,158.52,3.1532]
[1727425505759,10.69,158.65,158.59,10.69]
[1727425506163,3.1517,158.6,158.59,10.69]
[1727425506664,3.1514,158.62,158.59,10.69]
[1727425506963,3.1514,158.62,158.61,10.69]
[1727425507161,3.1512,158.64,158.61,10.69]
[1727425507359,66.38086275,158.67,158.55,3.1527]
[1727425507360,3.09015903,158.65,158.55,3.1527]
[1727425507659,10.69,158.67,158.61,10.69]
[1727425507863,10.69,158.67,158.55,3.1527]
[1727425507864,3.1515,158.62,158.55,3.1527]
[1727425508067,13.82809292,158.66,158.6,10.69]
[1727425508267,13.82809292,158.66,158.62,10.69]
[1727425509269,3.1512,158.63,158.62,10.69]
[1727425510462,3.1519,158.6,158.54,2.5595]
[1727425510663,13.86734119,158.66,158.54,2.5595]
[1727425510870,3.17734119,158.66,158.54,2.5595]
[1727425511172,3.1524,158.57,158.54,2.5595]
[1727425511659,13.82320269,158.64,158.54,2.5595]
[1727425511859,10.69,158.62,158.54,2.5595]
[1727425512058,3.1523,158.57,158.56,10.69]
[1727425512271,13.88087119,158.61,158.54,2.5595]
[1727425512474,13.88087119,158.61,158.56,10.69]
[1727425512667,3.1523,158.57,158.56,10.69]
[1727425514973,3.1529,158.54,158.53,1.3561]
[1727425515465,3.1529,158.54,158.53,12.0461]
[1727425529582,3.1529,158.54,158.53,1.3561]
[1727425529783,3.1529,158.54,158.53,12.0461]
[1727425529983,3.1529,158.54,158.53,1.3561]
[1727425530185,3.1529,158.54,158.53,12.0461]
[1727425542402,3.19087119,158.61,158.53,12.0461]
[1727425542591,10.69,158.62,158.53,1.3561]
[1727425542792,3.19020984,158.61,158.56,10.69]
[1727425543299,3.1523,158.57,158.56,10.69]
[1727425543595,10.69,158.62,158.56,10.69]
[1727425543799,10.69,158.62,158.57,10.69]
[1727425544002,3.1521,158.58,158.57,10.69]
[1727425544305,13.78717782,158.62,158.57,10.69]
[1727425544504,3.1521,158.59,158.57,10.69]
[1727425544901,1.3416,158.63,158.58,10.69]
[1727425545298,3.1519,158.59,158.58,10.69]
[1727425545905,3.1518,158.6,158.58,10.69]
[1727425546303,15.12195398,158.63,158.58,10.69]
[1727425547705,3.1519,158.59,158.58,10.69]
[1727425550402,3.1519,158.59,158.57,10.69]
[1727425552007,3.1521,158.58,158.57,10.69]
[1727425554018,10.69,158.59,158.53,1.3561]
[1727425554310,10.69,158.59,158.54,10.69]
[1727425554709,10.73455398,158.63,158.53,1.3561]
[1727425554908,10.69,158.59,158.55,10.69]
[1727425555417,4.43195398,158.63,158.55,10.69]
[1727425555720,10.69,158.6,158.55,10.69]
[1727425556106,3.1525,158.57,158.55,10.69]
[1727425557009,3.1525,158.56,158.55,10.69]
[1727425560514,3.1525,158.57,158.55,10.69]
[1727425560718,10.69,158.6,158.55,10.69]
[1727425562222,3.1525,158.56,158.55,10.69]
[1727425564413,4.43195398,158.63,158.55,10.69]
[1727425564617,10.69,158.62,158.57,10.69]
[1727425564919,3.1519,158.6,158.58,10.69]
[1727425565227,15.12195398,158.63,158.58,10.69]
[1727425565522,10.69,158.62,158.56,10.69]
[1727425565716,3.1523,158.58,158.56,10.69]
[1727425566317,3.152,158.59,158.57,10.69]
[1727425566720,3.1521,158.58,158.57,10.69]
[1727425566918,3.1521,158.58,158.56,10.69]
[1727425567222,10.69,158.61,158.55,10.69]
[1727425569326,3.1525,158.57,158.55,10.69]
[1727425570922,3.1525,158.56,158.53,1.3561]
[1727425571123,3.1525,158.56,158.55,10.69]
[1727425571523,3.1525,158.56,158.55,510.69]
[1727425574621,3.1525,158.56,158.55,500.0]
[1727425579441,3.1525,158.56,158.55,510.69]
[1727425579735,3.1523,158.58,158.55,510.69]
[1727425579934,3.1523,158.58,158.57,10.69]
[1727425580544,15.12195398,158.63,158.57,10.69]
[1727425580545,3.152,158.59,158.57,10.69]
[1727425581058,1.3416,158.63,158.57,10.69]
[1727425581244,10.69,158.64,158.59,10.69]
[1727425581439,1.2772,158.65,158.61,10.69]
[1727425581651,1.258,158.68,158.61,10.69]
[1727425581850,10.69,158.66,158.61,10.69]
[1727425582746,67.60087043,158.73,158.61,10.69]
[1727425582949,68.1,158.77,158.61,10.69]
[1727425583151,10.69,158.66,158.61,10.69]
[1727425583748,3.1508,158.65,158.61,10.69]
[1727425583951,10.69,158.66,158.61,10.69]
[1727425584345,3.1508,158.65,158.61,10.69]
[1727425585243,3.151,158.64,158.61,10.69]
[1727425588146,3.151,158.64,158.61,10.65]
[1727425588553,3.1508,158.65,158.61,13.8015]
[1727425588957,10.65,158.66,158.61,10.65]
[1727425589755,3.1511,158.64,158.61,10.65]
[1727425590955,10.65,158.62,158.57,1.2951]
[1727425591554,2.609,158.66,158.57,4.22776969]
[1727425591754,10.65,158.64,158.59,10.65]
[1727425591961,13.80799331,158.64,158.59,10.65]
[1727425592260,3.1514,158.62,158.59,10.65]
[1727425593248,3.1514,158.62,158.57,11.72556969]
[1727425593455,13.8014,158.62,158.58,3.152]
[1727425593860,10.65,158.62,158.58,3.152]
[1727425594758,10.65,158.62,158.59,3.1518]
[1727425595764,3.15799331,158.64,158.61,3.1515]
[1727425595957,13.80799331,158.64,158.61,3.1515]
[1727425597959,16.95899331,158.64,158.6,3.1517]
[1727425598161,13.80799331,158.64,158.6,3.1517]
[1727425598363,3.15799331,158.64,158.6,3.1517]
[1727425598563,10.65,158.63,158.61,3.1515]
[1727425598861,10.65,158.63,158.57,11.72556969]
[1727425599255,10.65,158.63,158.6,3.1517]
[1727425599662,6.35364683,158.64,158.6,3.1517]
[1727425599961,10.65,158.62,158.57,1.07556969]
[1727425600461,2.609,158.66,158.58,3.152]
[1727425600762,10.65,158.61,158.58,3.152]
[1727425601857,10.65,158.61,158.56,10.65]
[1727425602064,10.65,158.61,158.59,3.1519]
[1727425603164,3.1512,158.63,158.59,3.1519]
[1727425603361,10.65,158.61,158.59,3.1519]
[1727425603562,10.65,158.61,158.58,3.1521]
[1727425603765,10.65,158.61,158.56,10.65]
[1727425604161,10.65,158.61,158.58,3.152]
[1727425604363,6.3169587,158.63,158.58,3.152]
[1727425604666,10.65,158.62,158.58,3.152]
[1727425605054,6.3169587,158.63,158.58,3.152]
[1727425605260,3.151,158.64,158.58,10.65]
[1727425605563,10.65,158.63,158.58,10.65]
[1727425606060,47.1829,158.92,158.62,10.65]
[1727425606268,10.65,158.7,158.58,3.18897918]
[1727425606462,10.65,158.68,158.63,10.65]
[1727425606860,10.65,158.68,158.65,3.1507]
[1727425607269,4.39324227,158.79,158.59,3.9939]
[1727425607568,10.65,158.69,158.64,10.65]
[1727425607762,3.08491875,158.71,158.64,10.65]
[1727425607962,10.65,158.69,158.64,10.65]
[1727425608166,6.37178932,158.71,158.64,10.65]
[1727425608367,13.7999,158.7,158.65,3.1506]
[1727425609066,13.7999,158.7,158.66,3.1506]
[1727425609663,13.7999,158.7,158.65,3.1507]
[1727425610266,13.7999,158.7,158.66,3.1505]
[1727425611071,13.7999,158.7,158.65,3.1507]
[1727425611772,3.15,158.69,158.65,3.1507]
[1727425612474,68.08,158.9,158.68,10.65]
[1727425612671,10.65,158.74,158.68,10.65]
[1727425612870,3.12906323,158.73,158.68,10.65]
[1727425613271,10.65,158.73,158.66,2.6735]
[1727425613466,13.78505157,158.72,158.66,13.3235]
[1727425613670,10.65,158.72,158.66,13.3235]
[1727425614065,3.1497,158.71,158.66,16.4739]
[1727425614369,3.21951863,158.72,158.56,20.09785346]
[1727425614576,3.1505,158.67,158.62,3.1512]
[1727425614777,3.1505,158.67,158.61,10.65]
[1727425615172,3.1505,158.67,158.62,3.1512]
[1727425615570,3.1509,158.65,158.58,3.9888]
[1727425615776,10.65,158.64,158.58,3.9888]
[1727425615970,10.65,158.64,158.58,14.6388]
[1727425616472,3.1514,158.62,158.58,17.7909]
[1727425616674,3.1514,158.62,158.58,14.6388]
[1727425617782,3.1514,158.62,158.59,3.1519]
[1727425618172,3.1514,158.62,158.58,14.6388]
[1727425618476,3.1514,158.62,158.58,17.7908]
[1727425619875,3.1516,158.61,158.58,7.1408]
[1727425620080,3.1516,158.61,158.58,1.3519]
[1727425620781,10.65,158.62,158.58,1.3519]
[1727425620979,10.65,158.61,158.55,10.65]
[1727425621178,10.65,158.61,158.55,13.8026]
[1727425621380,10.65,158.61,158.56,10.65]
[1727425621580,6.2997,158.7,158.57,3.1523]
[1727425621881,13.8015,158.62,158.57,3.1523]
[1727425622377,10.65,158.62,158.58,13.802]
[1727425622581,6.6692548,158.71,158.59,10.65]
[1727425622775,6.6692548,158.71,158.54,1.3537]
[1727425622776,10.65,158.67,158.61,10.65]
[1727425622978,3.1508,158.65,158.61,10.65]
[1727425623384,6.6692548,158.71,158.61,10.65]
[1727425623686,10.65,158.66,158.61,10.65]
[1727425623874,13.8007,158.66,158.61,10.65]
[1727425624078,10.65,158.63,158.57,10.65]
[1727425624375,13.8013,158.63,158.57,13.8023]
[1727425624581,10.65,158.63,158.57,13.8023]
[1727425624980,13.8013,158.63,158.57,13.8023]
[1727425625577,13.8013,158.63,158.58,3.1521]
[1727425625983,3.1514,158.62,158.57,10.65]
[1727425626177,3.16619098,158.63,158.54,1.3537]
[1727425626481,10.65,158.61,158.56,10.65]
[1727425626680,13.8017,158.61,158.56,13.8024]
[1727425626879,3.1517,158.61,158.56,13.8024]
[1727425627082,3.1517,158.61,158.57,10.65]
[1727425627280,3.1517,158.61,158.57,13.8023]
[1727425627682,3.1517,158.61,158.57,10.65]
[1727425627882,10.65,158.62,158.57,10.65]
[1727425628282,12.9686548,158.71,158.58,10.65]
[1727425628477,10.65,158.65,158.6,10.65]
[1727425629277,3.151,158.64,158.6,10.65]
[1727425630182,13.801,158.64,158.6,10.65]
[1727425630384,3.1513,158.63,158.58,3.1521]
[1727425630580,3.1513,158.63,158.58,13.8021]
[1727425630780,3.1513,158.63,158.58,10.65]
[1727425631582,3.1513,158.63,158.59,10.65]
[1727425632182,3.1514,158.62,158.59,10.65]
[1727425632381,10.65,158.64,158.59,10.65]
[1727425632683,3.1513,158.63,158.59,10.65]
[1727425633591,3.09324356,158.63,158.54,1.3537]
[1727425633887,388.84,158.66,158.54,12.0037]
[1727425634190,13.8019,158.6,158.55,3.1526]
[1727425634682,3.1519,158.6,158.55,3.1526]
[1727425634886,13.8019,158.6,158.55,3.1526]
[1727425635383,3.10680074,158.62,158.53,3.153]
[1727425635384,3.1523,158.58,158.53,3.153]
[1727425635586,10.65,158.6,158.54,10.65]
[1727425636478,10.65,158.58,158.52,13.2785]
[1727425637186,0.9182,158.64,158.55,10.65]
[1727425637487,10.65,158.64,158.59,10.65]
[1727425637787,10.65,158.65,158.59,10.65]
[1727425638185,3.1511,158.64,158.59,13.8019]
[1727425640795,3.09961966,158.66,158.59,10.65]
[1727425641095,3.5018,158.7,158.53,12.60890814]
[1727425641096,10.65,158.62,158.53,12.60890814]
[1727425641295,3.5018,158.7,158.58,10.65]
[1727425641593,10.65,158.67,158.61,10.65]
[1727425641799,3.1508,158.65,158.61,10.65]
[1727425641991,10.65,158.67,158.61,10.65]
[1727425642191,10.65,158.67,158.54,3.08422109]
[1727425642492,3.1509,158.65,158.6,3.1517]
[1727425643797,10.65,158.65,158.56,1.2724]
[1727425644301,3.1513,158.63,158.58,3.152]
[1727425644992,3.151,158.64,158.56,1.2724]
[1727425645187,10.65,158.65,158.56,1.2724]
[1727425645488,3.1512,158.63,158.58,3.152]
[1727425645894,3.1512,158.63,158.59,3.1519]
[1727425646289,3.151,158.64,158.59,3.1519]
[1727425646489,10.65,158.66,158.6,3.1517]
[1727425646693,10.65,158.67,158.6,3.1517]
[1727425646895,3.1508,158.65,158.6,3.1517]
[1727425647397,3.1508,158.65,158.61,3.1515]
[1727425648797,3.1505,158.67,158.62,3.1513]
[1727425648994,5.78000063,158.7,158.63,10.65]
[1727425649197,10.65,158.69,158.63,10.65]
[1727425649394,3.1504,158.67,158.63,13.8012]
[1727425649791,3.1504,158.67,158.59,1.3238]
[1727425649792,10.65,158.67,158.61,10.65]
[1727425649992,3.1509,158.65,158.61,10.65]
[1727425651397,10.65,158.65,158.59,1.3238]
[1727425651596,10.65,158.65,158.6,10.65]
[1727425652499,3.1513,158.63,158.6,10.65]
[1727425652803,3.1513,158.63,158.59,11.9738]
[1727425653206,3.1513,158.63,158.59,15.1257]
[1727425653700,5.78000063,158.7,158.6,10.65]
[1727425653905,10.65,158.65,158.6,10.65]
[1727425654702,10.65,158.65,158.58,1.3055]
[1727425654899,10.65,158.65,158.58,11.9555]
[1727425655405,3.1512,158.63,158.6,10.65]
[1727425656301,10.65,158.64,158.6,10.65]
[1727425657406,3.1515,158.62,158.6,10.65]
[1727425661113,3.1515,158.62,158.58,4.4576]
[1727425663014,3.1515,158.62,158.59,3.1519]
[1727425663210,0.9181,158.69,158.59,3.1519]